Workbook

Sheet Inputs
E1: (10000 s, 50 y)
B2: starting state: | C2: 1 | E2: runtime: 1 min, 42 sec
B3: years: | C3: 50 | G3: S&P 500 | I3: US Large Cap Stocks | M3: Corr 1 | N3: S&P 500 | O3: NSDQ | P3: R2k | Q3: EAFE | R3: EM | S3: R1kG | T3: R1kV | V3: Cov Matrix 1 | W3: S&P 500 | X3: NSDQ | Y3: R2k | Z3: EAFE | AA3: EM | AB3: R1kG | AC3: R1kV | AE3: Cholesky 1 | AF3: S&P 500 | AG3: NSDQ | AH3: R2k | AI3: EAFE | AJ3: EM | AK3: R1kG | AL3: R1kV
B4: scenarios: | C4: 10000 | G4: μ1: | H4: 0.1307612186 | I4: σ1: | J4: 0.2791880633 | M4: S&P 500 | N4: 1 | O4: =N5 -> 0.8118288919 | P4: =N6 -> 0.7539829833 | Q4: =N7 -> 0.5029379007 | R4: =N8 -> 0.4547278213 | S4: =N9 -> 0.9336672188 | T4: =N10 -> 0.9313470279 | V4: S&P 500 | W4: =ROUND(N4*sp_sd_1*sp_sd_1, 3) -> 0.078 | X4: =W5 -> 0.089 | Y4: =W6 -> 0.089 | Z4: =W7 -> 0.054 | AA4: =W8 -> 0.072 | AB4: =W9 -> 0.08 | AC4: =W10 -> 0.074 | AE4: S&P 500 | AF4: 0.2793 | AG4: 0 | AH4: 0 | AI4: 0 | AJ4: 0 | AK4: 0 | AL4: 0
G5: μ2: | H5: 0.03108490703 | I5: σ2: | J5: 0.6238958805 | M5: NSDQ | N5: 0.8118288919 | O5: 1 | P5: =O6 -> 0.8333147792 | Q5: =O7 -> 0.3813359259 | R5: =O8 -> 0.4378442742 | S5: =O9 -> 0.8956846378 | T5: =O10 -> 0.675090927 | V5: NSDQ | W5: =ROUND(N5*sp_sd_1*nsdq_sd_1, 3) -> 0.089 | X5: =ROUND(O5*nsdq_sd_1*nsdq_sd_1, 3) -> 0.155 | Y5: =X6 -> 0.139 | Z5: =X7 -> 0.058 | AA5: =X8 -> 0.098 | AB5: =X9 -> 0.108 | AC5: =X10 -> 0.076 | AE5: NSDQ | AF5: 0.3187 | AG5: 0.2312 | AH5: 0 | AI5: 0 | AJ5: 0 | AK5: 0 | AL5: 0
B6: Regime 3 Adjustable Values: | G6: μ3: | H6: =reg_3_mean -> -0.05 | I6: σ3: | J6: =reg_3_sd -> 0.8 | M6: R2k | N6: 0.7539829833 | O6: 0.8333147792 | P6: 1 | Q6: =P7 -> 0.3802240733 | R6: =P8 -> 0.4125035065 | S6: =P9 -> 0.735569134 | T6: =P10 -> 0.7498127043 | V6: R2k | W6: =ROUND(N6*sp_sd_1*rus2k_sd_1, 3) -> 0.089 | X6: =ROUND(O6*nsdq_sd_1*rus2k_sd_1, 3) -> 0.139 | Y6: =ROUND(P6*rus2k_sd_1*rus2k_sd_1, 3) -> 0.181 | Z6: =Y7 -> 0.062 | AA6: =Y8 -> 0.099 | AB6: =Y9 -> 0.095 | AC6: =Y10 -> 0.091 | AE6: R2k | AF6: 0.3187 | AG6: 0.162 | AH6: 0.2307 | AI6: 0 | AJ6: 0 | AK6: 0 | AL6: 0
B7: μ3: | C7: -0.05 | M7: EAFE | N7: 0.5029379007 | O7: 0.3813359259 | P7: 0.3802240733 | Q7: 1 | R7: =Q8 -> 0.500111254 | S7: =Q9 -> 0.4285520996 | T7: =Q10 -> 0.4916118457 | V7: EAFE | W7: =ROUND(N7*sp_sd_1*msci_eafe_sd_1, 3) -> 0.054 | X7: =ROUND(O7*nsdq_sd_1*msci_eafe_sd_1, 3) -> 0.058 | Y7: =ROUND(P7*rus2k_sd_1*msci_eafe_sd_1, 3) -> 0.062 | Z7: =ROUND(Q7*msci_eafe_sd_1*msci_eafe_sd_1, 3) -> 0.149 | AA7: =Z8 -> 0.109 | AB7: =Z9 -> 0.051 | AC7: =Z10 -> 0.054 | AE7: EAFE | AF7: 0.1934 | AG7: -0.0156 | AH7: 0.0126 | AI7: 0.3335 | AJ7: 0 | AK7: 0 | AL7: 0
B8: σ3: | C8: 0.8 | G8: NASDAQ | I8: US Large Cap Tech Stocks | M8: EM | N8: 0.4547278213 | O8: 0.4378442742 | P8: 0.4125035065 | Q8: 0.500111254 | R8: 1 | S8: =R9 -> 0.4174157222 | T8: =R10 -> 0.4471177278 | V8: EM | W8: =ROUND(N8*sp_sd_1*msci_em_sd_1, 3) -> 0.072 | X8: =ROUND(O8*nsdq_sd_1*msci_em_sd_1, 3) -> 0.098 | Y8: =ROUND(P8*rus2k_sd_1*msci_em_sd_1, 3) -> 0.099 | Z8: =ROUND(Q8*msci_eafe_sd_1*msci_em_sd_1, 3) -> 0.109 | AA8: =ROUND(R8*msci_em_sd_1*msci_em_sd_1, 3) -> 0.32 | AB8: =AA9 -> 0.072 | AC8: =AA10 -> 0.072 | AE8: EM | AF8: 0.2578 | AG8: 0.0685 | AH8: 0.0249 | AI8: 0.1797 | AJ8: 0.4647 | AK8: 0 | AL8: 0
B9: t13 | C9: 0 | G9: μ1: | H9: 0.158174626 | I9: σ1: | J9: 0.3937552365 | M9: R1kG | N9: 0.9336672188 | O9: 0.8956846378 | P9: 0.735569134 | Q9: 0.4285520996 | R9: 0.4174157222 | S9: 1 | T9: =S10 -> 0.756439421 | V9: R1kG | W9: =ROUND(N9*sp_sd_1*rus1kg_sd_1, 3) -> 0.08 | X9: =ROUND(O9*nsdq_sd_1*rus1kg_sd_1, 3) -> 0.108 | Y9: =ROUND(P9*rus2k_sd_1*rus1kg_sd_1, 3) -> 0.095 | Z9: =ROUND(Q9*msci_eafe_sd_1*rus1kg_sd_1, 3) -> 0.051 | AA9: =ROUND(R9*msci_em_sd_1*rus1kg_sd_1, 3) -> 0.072 | AB9: =ROUND(S9*rus1kg_sd_1*rus1kg_sd_1, 3) -> 0.093 | AC9: =AB10 -> 0.066 | AE9: R1kG | AF9: 0.2864 | AG9: 0.0723 | AH9: -0.0347 | AI9: -0.0084 | AJ9: -0.0095 | AK9: 0.066 | AL9: 0
B10: t23 | C10: 0 | G10: μ2: | H10: 0.0456392063 | I10: σ2: | J10: 0.969688917 | M10: R1kV | N10: 0.9313470279 | O10: 0.675090927 | P10: 0.7498127043 | Q10: 0.4916118457 | R10: 0.4471177278 | S10: 0.756439421 | T10: 1 | V10: R1kV | W10: =ROUND(N10*sp_sd_1*rus1kv_sd_1, 3) -> 0.074 | X10: =ROUND(O10*rus1kv_sd_1*nsdq_sd_1, 3) -> 0.076 | Y10: =ROUND(P10*rus2k_sd_1*rus1kv_sd_1, 3) -> 0.091 | Z10: =ROUND(Q10*msci_eafe_sd_1*rus1kv_sd_1, 3) -> 0.054 | AA10: =ROUND(R10*msci_em_sd_1*rus1kv_sd_1, 3) -> 0.072 | AB10: =ROUND(S10*rus1kg_sd_1*rus1kv_sd_1, 3) -> 0.066 | AC10: =ROUND(T10*rus1kv_sd_1*rus1kv_sd_1, 3) -> 0.081 | AE10: R1kV | AF10: 0.265 | AG10: -0.0365 | AH10: 0.0541 | AI10: 0.0045 | AJ10: 0.0087 | AK10: -0.0797 | AL10: 0.0091
B11: t31 | C11: 0 | G11: μ3: | H11: =reg_3_mean -> -0.05 | I11: σ3: | J11: =reg_3_sd -> 0.8
B12: t32 | C12: 0 | M12: Corr 2 | N12: S&P 500 | O12: NSDQ | P12: R2k | Q12: EAFE | R12: EM | S12: R1kG | T12: R1kV | V12: Cov Matrix 2 | W12: S&P 500 | X12: NSDQ | Y12: R2k | Z12: EAFE | AA12: EM | AB12: R1kG | AC12: R1kV | AE12: Cholesky 2 | AF12: S&P 500 | AG12: NSDQ | AH12: R2k | AI12: EAFE | AJ12: EM | AK12: R1kG | AL12: R1kV
B13: t33 | C13: 0 | G13: Russell 2000 | I13: US Small Cap Stocks | M13: S&P 500 | N13: 1 | O13: =N14 -> 0.8474430742 | P13: =N15 -> 0.8362874617 | Q13: =N16 -> 0.8009456611 | R13: =N17 -> 0.7388405903 | S13: =N18 -> 0.9578731536 | T13: =N19 -> 0.9455090981 | V13: S&P 500 | W13: =ROUND(N13*sp_sd_2*sp_sd_2, 3) -> 0.389 | X13: =W14 -> 0.513 | Y13: =W15 -> 0.42 | Z13: =W16 -> 0.359 | AA13: =W17 -> 0.443 | AB13: =W18 -> 0.437 | AC13: =W19 -> 0.369 | AE13: S&P 500 | AF13: 0.6237 | AG13: 0 | AH13: 0 | AI13: 0 | AJ13: 0 | AK13: 0 | AL13: 0
G14: μ1: | H14: 0.1284058848 | I14: σ1: | J14: 0.4249087535 | M14: NSDQ | N14: 0.8474430742 | O14: 1 | P14: =O15 -> 0.8659291842 | Q14: =O16 -> 0.6834782845 | R14: =O17 -> 0.7082792819 | S14: =O18 -> 0.9310417108 | T14: =O19 -> 0.6881884167 | V14: NSDQ | W14: =ROUND(N14*sp_sd_2*nsdq_sd_2, 3) -> 0.513 | X14: =ROUND(O14*nsdq_sd_2*nsdq_sd_2, 3) -> 0.94 | Y14: =X15 -> 0.676 | Z14: =X16 -> 0.476 | AA14: =X17 -> 0.661 | AB14: =X18 -> 0.66 | AC14: =X19 -> 0.418 | AE14: NSDQ | AF14: 0.8225 | AG14: 0.5133 | AH14: 0 | AI14: 0 | AJ14: 0 | AK14: 0 | AL14: 0
B15: Transitions: | D15: (PDF) | G15: μ2: | H15: 0.0306597352 | I15: σ2: | J15: 0.8056392939 | M15: R2k | N15: 0.8362874617 | O15: 0.8659291842 | P15: 1 | Q15: =P16 -> 0.7280512114 | R15: =P17 -> 0.7496115646 | S15: =P18 -> 0.8225709612 | T15: =P19 -> 0.8032403817 | V15: R2k | W15: =ROUND(N15*sp_sd_2*rus2k_sd_2, 3) -> 0.42 | X15: =ROUND(O15*nsdq_sd_2*rus2k_sd_2, 3) -> 0.676 | Y15: =ROUND(P15*rus2k_sd_2*rus2k_sd_2, 3) -> 0.649 | Z15: =Y16 -> 0.421 | AA15: =Y17 -> 0.581 | AB15: =Y18 -> 0.485 | AC15: =Y19 -> 0.405 | AE15: R2k | AF15: 0.6734 | AG15: 0.2379 | AH15: 0.3727 | AI15: 0 | AJ15: 0 | AK15: 0 | AL15: 0
C16: 1 | D16: 2 | E16: 3 | G16: μ3: | H16: =reg_3_mean -> -0.05 | I16: σ3: | J16: =reg_3_sd -> 0.8 | M16: EAFE | N16: 0.8009456611 | O16: 0.6834782845 | P16: 0.7280512114 | Q16: 1 | R16: =Q17 -> 0.7843329535 | S16: =Q18 -> 0.763358161 | T16: =Q19 -> 0.7648135197 | V16: EAFE | W16: =ROUND(N16*sp_sd_2*msci_eafe_sd_2, 3) -> 0.359 | X16: =ROUND(O16*nsdq_sd_2*msci_eafe_sd_2, 3) -> 0.476 | Y16: =ROUND(P16*rus2k_sd_2*msci_eafe_sd_2, 3) -> 0.421 | Z16: =ROUND(Q16*msci_eafe_sd_2*msci_eafe_sd_2, 3) -> 0.516 | AA16: =Z17 -> 0.542 | AB16: =Z18 -> 0.401 | AC16: =Z19 -> 0.344 | AE16: EAFE | AF16: 0.5756 | AG16: 0.005 | AH16: 0.0864 | AI16: 0.4209 | AJ16: 0 | AK16: 0 | AL16: 0
B17: 1 | C17: 0.965111894 | D17: 0.034888106 | E17: =prob_13 -> 0 | M17: EM | N17: 0.7388405903 | O17: 0.7082792819 | P17: 0.7496115646 | Q17: 0.7843329535 | R17: 1 | S17: =R18 -> 0.7265016049 | T17: =R19 -> 0.7004905203 | V17: EM | W17: =ROUND(N17*sp_sd_2*msci_em_sd_2, 3) -> 0.443 | X17: =ROUND(O17*nsdq_sd_2*msci_em_sd_2, 3) -> 0.661 | Y17: =ROUND(P17*rus2k_sd_2*msci_em_sd_2, 3) -> 0.581 | Z17: =ROUND(Q17*msci_eafe_sd_2*msci_em_sd_2, 3) -> 0.542 | AA17: =ROUND(R17*msci_em_sd_2*msci_em_sd_2, 3) -> 0.925 | AB17: =AA18 -> 0.511 | AC17: =AA19 -> 0.422 | AE17: EM | AF17: 0.7103 | AG17: 0.1496 | AH17: 0.18 | AI17: 0.2776 | AJ17: 0.5373 | AK17: 0 | AL17: 0
B18: 2 | C18: 0.036026334 | D18: 0.963973666 | E18: =prob_23 -> 0 | G18: MSCI EAFE | I18: International Large Cap | M18: R1kG | N18: 0.9578731536 | O18: 0.9310417108 | P18: 0.8225709612 | Q18: 0.763358161 | R18: 0.7265016049 | S18: 1 | T18: =S19 -> 0.8208296516 | V18: R1kG | W18: =ROUND(N18*sp_sd_2*rus1kg_sd_2, 3) -> 0.437 | X18: =ROUND(O18*nsdq_sd_2*rus1kg_sd_2, 3) -> 0.66 | Y18: =ROUND(P18*rus2k_sd_2*rus1kg_sd_2, 3) -> 0.485 | Z18: =ROUND(Q18*msci_eafe_sd_2*rus1kg_sd_2, 3) -> 0.401 | AA18: =ROUND(R18*msci_em_sd_2*rus1kg_sd_2, 3) -> 0.511 | AB18: =ROUND(S18*rus1kg_sd_2*rus1kg_sd_2, 3) -> 0.535 | AC18: =AB19 -> 0.376 | AE18: R1kG | AF18: 0.7007 | AG18: 0.1631 | AH18: -0.0687 | AI18: 0.0067 | AJ18: -0.001 | AK18: 0.1128 | AL18: 0
B19: 3 | C19: =prob_31 -> 0 | D19: =prob_32 -> 0 | E19: =prob_33 -> 0 | G19: μ1: | H19: 0.1075207193 | I19: σ1: | J19: 0.3865936014 | M19: R1kV | N19: 0.9455090981 | O19: 0.6881884167 | P19: 0.8032403817 | Q19: 0.7648135197 | R19: 0.7004905203 | S19: 0.8208296516 | T19: 1 | V19: R1kV | W19: =ROUND(N19*sp_sd_2*rus1kv_sd_2, 3) -> 0.369 | X19: =ROUND(O19*rus1kv_sd_2*nsdq_sd_2, 3) -> 0.418 | Y19: =ROUND(P19*rus2k_sd_2*rus1kv_sd_2, 3) -> 0.405 | Z19: =ROUND(Q19*msci_eafe_sd_2*rus1kv_sd_2, 3) -> 0.344 | AA19: =ROUND(R19*msci_em_sd_2*rus1kv_sd_2, 3) -> 0.422 | AB19: =ROUND(S19*rus1kg_sd_2*rus1kv_sd_2, 3) -> 0.376 | AC19: =ROUND(T19*rus1kv_sd_2*rus1kv_sd_2, 3) -> 0.391 | AE19: R1kV | AF19: 0.5916 | AG19: -0.1337 | AH19: 0.103 | AI19: -0.0113 | AJ19: 0.0119 | AK19: -0.0848 | AL19: 0.0709
G20: μ2: | H20: -0.05174123809 | I20: σ2: | J20: 0.7180702129
G21: μ3: | H21: =reg_3_mean -> -0.05 | I21: σ3: | J21: =reg_3_sd -> 0.8 | M21: Corr 3 | N21: S&P 500 | O21: NSDQ | P21: R2k | Q21: EAFE | R21: EM | S21: R1kG | T21: R1kV | AE21: Cholesky 3 | AF21: S&P 500 | AG21: NSDQ | AH21: R2k | AI21: EAFE | AJ21: EM | AK21: R1kG | AL21: R1kV
C22: 1 | D22: 2 | E22: 3 | M22: S&P 500 | N22: 1 | O22: =N23 -> 1 | P22: =N24 -> 1 | Q22: =N25 -> 1 | R22: =N26 -> 1 | S22: =N27 -> 1 | T22: =N28 -> 1 | AE22: S&P 500 | AF22: 1 | AG22: 0 | AH22: 0 | AI22: 0 | AJ22: 0 | AK22: 0 | AL22: 0
B23: 1 | C23: =prob_11 -> 0.965111894 | D23: =prob_11+prob_12 -> 1 | E23: =prob_11+prob_12+prob_13 -> 1 | G23: MSCI EM | I23: Emerging Markets | M23: NSDQ | N23: 1 | O23: 1 | P23: =O24 -> 1 | Q23: =O25 -> 1 | R23: =O26 -> 1 | S23: =O27 -> 1 | T23: =O28 -> 1 | AE23: NSDQ | AF23: 1 | AG23: 1 | AH23: 0 | AI23: 0 | AJ23: 0 | AK23: 0 | AL23: 0
B24: 2 | C24: =prob_21 -> 0.036026334 | D24: =prob_21+prob_22 -> 1 | E24: =prob_21+prob_22+prob_23 -> 1 | G24: μ1: | H24: 0.146224981 | I24: σ1: | J24: 0.5660010557 | M24: R2k | N24: 1 | O24: 1 | P24: 1 | Q24: =P25 -> 1 | R24: =P26 -> 1 | S24: =P27 -> 1 | T24: =P28 -> 1 | AE24: R2k | AF24: 1 | AG24: 1 | AH24: 1 | AI24: 0 | AJ24: 0 | AK24: 0 | AL24: 0
B25: 3 | C25: =prob_31 -> 0 | D25: =prob_31+prob_32 -> 0 | E25: =prob_31+prob_32+prob_33 -> 0 | G25: μ2: | H25: -0.003198603363 | I25: σ2: | J25: 0.9617942315 | M25: EAFE | N25: 1 | O25: 1 | P25: 1 | Q25: 1 | R25: =Q26 -> 1 | S25: =Q27 -> 1 | T25: =Q28 -> 1 | AE25: EAFE | AF25: 1 | AG25: 1 | AH25: 1 | AI25: 1 | AJ25: 0 | AK25: 0 | AL25: 0
G26: μ3: | H26: =reg_3_mean -> -0.05 | I26: σ3: | J26: =reg_3_sd -> 0.8 | M26: EM | N26: 1 | O26: 1 | P26: 1 | Q26: 1 | R26: 1 | S26: =R27 -> 1 | T26: =R28 -> 1 | AE26: EM | AF26: 1 | AG26: 1 | AH26: 1 | AI26: 1 | AJ26: 1 | AK26: 0 | AL26: 0
C27: Regime 1: | D27: Regime 2: | E27: Regime 3: | M27: R1kG | N27: 1 | O27: 1 | P27: 1 | Q27: 1 | R27: 1 | S27: 1 | T27: =S28 -> 1 | AE27: R1kG | AF27: 1 | AG27: 1 | AH27: 1 | AI27: 1 | AJ27: 1 | AK27: 1 | AL27: 0
B28: State Count: | C28: 317733 | D28: 182267 | E28: 0 | G28: Russell 1000 Growth | I28: Large Cap Growth | M28: R1kV | N28: 1 | O28: 1 | P28: 1 | Q28: 1 | R28: 1 | S28: 1 | T28: 1 | AE28: R1kV | AF28: 1 | AG28: 1 | AH28: 1 | AI28: 1 | AJ28: 1 | AK28: 1 | AL28: 1
B29: Ratio of Total: | C29: =C28/(SUM(C28:E28)) -> 0.635466 | D29: =D28/(SUM(C28:E28)) -> 0.364534 | E29: =E28/(SUM(C28:E28)) -> 0 | G29: μ1: | H29: 0.1388304454 | I29: σ1: | J29: 0.3051081235
B30: Steady State: | C30: 0.508 | D30: 0.492 | E30: 0 | G30: μ2: | H30: 0.03386232565 | I30: σ2: | J30: 0.7313153535
G31: μ3: | H31: =reg_3_mean -> -0.05 | I31: σ3: | J31: =reg_3_sd -> 0.8
G33: Russell 1000 Value | I33: Large Cap Value
G34: μ1: | H34: 0.1182686629 | I34: σ1: | J34: 0.2849669886
G35: μ2: | H35: 0.022565202 | I35: σ2: | J35: 0.6256802707
G36: μ3: | H36: =reg_3_mean -> -0.05 | I36: σ3: | J36: =reg_3_sd -> 0.8
B67: Note: All results were found using the same frozen list of random numbers for the Markov Chain.
B69: Arbitrary Transition Values, 3 Regimes: | G69: Probabilities from MLE: | L69: Arbitrary Transition Values, 2 Regimes:
C70: Regime 1: | D70: Regime 2: | E70: Regime 3: | H70: Regime 1: | I70: Regime 2: | J70: Regime 3: | M70: Regime 1: | N70: Regime 2: | O70: Regime 3:
B71: State Count: | C71: 237877 | D71: 168420 | E71: 93703 | G71: State Count: | H71: 315618 | I71: 184382 | J71: 0 | L71: State Count: | M71: 313825 | N71: 186175 | O71: 0
B72: Ratio of Total: | C72: =C71/(SUM(C71:E71)) -> 0.475754 | D72: =D71/(SUM(C71:E71)) -> 0.33684 | E72: =E71/(SUM(C71:E71)) -> 0.187406 | G72: Ratio of Total: | H72: =H71/(SUM(H71:J71)) -> 0.631236 | I72: =I71/(SUM(H71:J71)) -> 0.368764 | J72: =J71/(SUM(H71:J71)) -> 0 | L72: Ratio of Total: | M72: =M71/(SUM(M71:O71)) -> 0.62765 | N72: =N71/(SUM(M71:O71)) -> 0.37235 | O72: =O71/(SUM(M71:O71)) -> 0
B73: Steady State: | C73: 0.4753 | D73: 0.3416 | E73: 0.1931 | G73: Steady State: | H73: 0.508 | I73: 0.492 | J73: 0 | K73: (From MATLAB) | L73: Steady State: | M73: 0.625 | N73: 0.375 | O73: 0
B75: Transitions: | D75: (PDF) | G75: Transitions: | I75: (PDF) | L75: Transitions: | N75: (PDF)
C76: 1 | D76: 2 | E76: 3 | H76: 1 | I76: 2 | J76: 3 | M76: 1 | N76: 2 | O76: 3
B77: 1 | C77: 0.6 | D77: 0.3 | E77: 0.1 | G77: 1 | H77: 0.965111894 | I77: 0.034888106 | J77: 0 | L77: 1 | M77: 0.7 | N77: 0.3 | O77: 0
B78: 2 | C78: 0.5 | D78: 0.3 | E78: 0.2 | G78: 1 | H78: 0.036026334 | I78: 0.963973666 | J78: 0 | L78: 2 | M78: 0.5 | N78: 0.5 | O78: 0
B79: 3 | C79: 0.1 | D79: 0.5 | E79: 0.4 | G79: 3 | H79: 0 | I79: 0 | J79: 0 | L79: 3 | M79: 0 | N79: 0 | O79: 0

Sheet Random Numbers
A1: State Transitions | B1: S&P 500 | C1: NASDAQ | D1: Russell 2000 | E1: MSCI EAFE | F1: MSCI EM | G1: Russell 1000 Growth | H1: Russell 1000 Value
